{"text_format":"3","workbook":"xlsx","n_sheets":2,"sheets":["Rezumatul Bugetului","Detalii despre buget"],"not_rendered":{"images":1,"defined_names":1},"read":"whole","date_system":"1900"}

{"sheet":"Rezumatul Bugetului","index":0,"n_rows":28,"n_cols":7,"rows_kept":28}
[{"$nulls":6}," "]
[]
[null,"BUGETUL TOTAL AL NUNȚII",{"v":20000,"d":"20,000 lei"}]
[]
[null,"CHELTUIELI","Alocare \n%","Buget alocat","Costuri \nestimate","Costuri \nreale"]
[null,"Recepție",{"v":0.5,"d":"50%"},{"$f":"Total_Buget_Nuntă*'Rezumatul Bugetului'!$C6","v":{"v":10000,"d":"10,000 lei"}},{"$f":"Tabel_Recepție[[#Totals],[Costuri estimate]]","v":{"v":0,"d":"0 lei"}},{"$f":"Tabel_Recepție[[#Totals],[Costuri reale]]","v":{"v":0,"d":"0 lei"}}]
[null,"Îmbrăcăminte",{"v":0.1,"d":"10%"},{"$f":"Total_Buget_Nuntă*'Rezumatul Bugetului'!$C7","v":{"v":2000,"d":"2,000 lei"}},{"$f":"Tabel_Îmbrăcăminte[[#Totals],[Costuri estimate]]","v":{"v":0,"d":"0 lei"}},{"$f":"Tabel_Îmbrăcăminte[[#Totals],[Costuri reale]]","v":{"v":0,"d":"0 lei"}}]
[null,"Flori și decorațiuni",{"v":0.1,"d":"10%"},{"$f":"Total_Buget_Nuntă*'Rezumatul Bugetului'!$C8","v":{"v":2000,"d":"2,000 lei"}},{"$f":"Tabel_FloriȘiDecorațiuni[[#Totals],[Costuri estimate]]","v":{"v":0,"d":"0 lei"}},{"$f":"Tabel_FloriȘiDecorațiuni[[#Totals],[Costuri reale]]","v":{"v":0,"d":"0 lei"}}]
[null,"Muzică",{"v":0.1,"d":"10%"},{"$f":"Total_Buget_Nuntă*'Rezumatul Bugetului'!$C9","v":{"v":2000,"d":"2,000 lei"}},{"$f":"Tabel_Muzică[[#Totals],[Costuri estimate]]","v":{"v":0,"d":"0 lei"}},{"$f":"Tabel_Muzică[[#Totals],[Costuri reale]]","v":{"v":0,"d":"0 lei"}}]
[null,"Fotografii și video",{"v":0.1,"d":"10%"},{"$f":"Total_Buget_Nuntă*'Rezumatul Bugetului'!$C10","v":{"v":2000,"d":"2,000 lei"}},{"$f":"Tabel_FotografiiȘiVideo[[#Totals],[Costuri estimate]]","v":{"v":0,"d":"0 lei"}},{"$f":"Tabel_FotografiiȘiVideo[[#Totals],[Costuri reale]]","v":{"v":0,"d":"0 lei"}}]
[null,"Favoruri și daruri",{"v":0.03,"d":"3%"},{"$f":"Total_Buget_Nuntă*'Rezumatul Bugetului'!$C11","v":{"v":600,"d":"600 lei"}},{"$f":"Tabel_FavoruriȘiDaruri[[#Totals],[Costuri estimate]]","v":{"v":0,"d":"0 lei"}},{"$f":"Tabel_FavoruriȘiDaruri[[#Totals],[Costuri reale]]","v":{"v":0,"d":"0 lei"}}]
[null,"Ceremonie",{"v":0.02,"d":"2%"},{"$f":"Total_Buget_Nuntă*'Rezumatul Bugetului'!$C12","v":{"v":400,"d":"400 lei"}},{"$f":"Tabel_Ceremonie[[#Totals],[Costuri estimate]]","v":{"v":0,"d":"0 lei"}},{"$f":"Tabel_Ceremonie[[#Totals],[Costuri reale]]","v":{"v":0,"d":"0 lei"}}]
[null,"Papetărie",{"v":0.02,"d":"2%"},{"$f":"Total_Buget_Nuntă*'Rezumatul Bugetului'!$C13","v":{"v":400,"d":"400 lei"}},{"$f":"Tabel_Papetărie[[#Totals],[Costuri estimate]]","v":{"v":0,"d":"0 lei"}},{"$f":"Tabel_Papetărie[[#Totals],[Costuri reale]]","v":{"v":0,"d":"0 lei"}}]
[null,"Verighete",{"v":0.02,"d":"2%"},{"$f":"Total_Buget_Nuntă*'Rezumatul Bugetului'!$C14","v":{"v":400,"d":"400 lei"}},{"$f":"Tabel_Verighete[[#Totals],[Costuri estimate]]","v":{"v":0,"d":"0 lei"}},{"$f":"Tabel_Verighete[[#Totals],[Costuri reale]]","v":{"v":0,"d":"0 lei"}}]
[null,"Transport",{"v":0.01,"d":"1%"},{"$f":"Total_Buget_Nuntă*'Rezumatul Bugetului'!$C15","v":{"v":200,"d":"200 lei"}},{"$f":"Tabel_Transport[[#Totals],[Costuri estimate]]","v":{"v":0,"d":"0 lei"}},{"$f":"Tabel_Transport[[#Totals],[Costuri reale]]","v":{"v":0,"d":"0 lei"}}]
[null,"Total",{"$f":"SUM(C6:C15)","v":{"v":1,"d":"100%"}},{"$f":"SUM(D6:D15)","v":{"v":20000,"d":"20,000 lei"}},{"v":0,"d":"0 lei"},{"v":0,"d":"0 lei"}]
[]
[null,"CONTRIBUȚII"]
[null,"Sursa de fond","Contribuție"]
[null,"Economii",{"v":10000,"d":"10,000 lei"}]
[null,"Mama și tata partenerului 1",{"v":4000,"d":"4,000 lei"}]
[null,"Bunicii partenerului 1",{"v":2000,"d":"2,000 lei"}]
[null,"Mama și tata partenerului 2",{"v":4000,"d":"4,000 lei"}]
[null,"Bunicii partenerului 2",{"v":4000,"d":"4,000 lei"}]
[null,"Alte contribuții",{"v":2000,"d":"2,000 lei"}]
[null,"Total",{"$f":"SUBTOTAL(109,Tabel_Contribuții[Contribuție])","v":{"v":26000,"d":"26,000 lei"}}]
[]
[null,{"$f":"IF(Tabel_Contribuții[[#Totals],[Contribuție]]<Total_Buget_Nuntă,\"Diferența de compensat\",\"Fonduri suplimentare disponibile\")","v":"Fonduri suplimentare disponibile"},{"$f":"IF(Tabel_Contribuții[[#Totals],[Contribuție]]<Total_Buget_Nuntă,Total_Buget_Nuntă-Tabel_Contribuții[[#Totals],[Contribuție]],Tabel_Contribuții[[#Totals],[Contribuție]]-Total_Buget_Nuntă)","v":{"v":6000,"d":"6,000 lei"}}]

{"sheet":"Detalii despre buget","index":1,"n_rows":80,"n_cols":4,"rows_kept":80}
[]
[null,"RECEPȚIE","Costuri estimate","Costuri reale"]
[null,"Locul de desfășurare și închirieri"]
[null,"Mâncare și servicii"]
[null,"Băuturi"]
[null,"Tort"]
[null,"Diverse"]
[null,"Total",{"$f":"SUBTOTAL(109,Tabel_Recepție[Costuri estimate])","v":{"v":0,"d":"0.00 lei"}},{"$f":"SUBTOTAL(109,Tabel_Recepție[Costuri reale])","v":{"v":0,"d":"0.00 lei"}}]
[]
[null,"ÎMBRĂCĂMINTE","Costuri estimate","Costuri reale"]
[null,"Smoching, costum și/sau rochii"]
[null,"Modificări"]
[null,"Coroniță și voal"]
[null,"Accesorii"]
[null,"Coafură și machiaj"]
[null,"Diverse"]
[null,"Total",{"$f":"SUBTOTAL(109,Tabel_Îmbrăcăminte[Costuri estimate])","v":{"v":0,"d":"0.00 lei"}},{"$f":"SUBTOTAL(109,Tabel_Îmbrăcăminte[Costuri reale])","v":{"v":0,"d":"0.00 lei"}}]
[]
[null,"FLORI ȘI DECORAȚIUNI","Costuri estimate","Costuri reale"]
[null,"Aranjamente florale pentru ceremonie"]
[null,"Flori și coș cu flori pentru domnișoarele de onoare"]
[null,"Pernuță pentru verighete"]
[null,"Buchete"]
[null,"Cocarde"]
[null,"Ornamente florale"]
[null,"Decorațiuni recepție"]
[null,"Iluminat"]
[null,"Diverse"]
[null,"Total",{"$f":"SUBTOTAL(109,Tabel_FloriȘiDecorațiuni[Costuri estimate])","v":{"v":0,"d":"0.00 lei"}},{"$f":"SUBTOTAL(109,Tabel_FloriȘiDecorațiuni[Costuri reale])","v":{"v":0,"d":"0.00 lei"}}]
[]
[null,"MUZICĂ","Costuri estimate","Costuri reale"]
[null,"Muzicieni pentru ceremonie"]
[null,"Muzicieni pentru „cocktail hour”"]
[null,"Trupa pentru recepție, DJ sau divertisment"]
[null,"Închirieri de sisteme audio sau de ring de dans"]
[null,"Diverse"]
[null,"Total",{"$f":"SUBTOTAL(109,Tabel_Muzică[Costuri estimate])","v":{"v":0,"d":"0.00 lei"}},{"$f":"SUBTOTAL(109,Tabel_Muzică[Costuri reale])","v":{"v":0,"d":"0.00 lei"}}]
[]
[null,"FOTOGRAFII ȘI VIDEO","Costuri estimate","Costuri reale"]
[null,"Fotografii"]
[null,"Înregistrări video"]
[null,"Alte printuri și albume"]
[null,"Diverse"]
[null,"Total",{"$f":"SUBTOTAL(109,Tabel_FotografiiȘiVideo[Costuri estimate])","v":{"v":0,"d":"0.00 lei"}},{"$f":"SUBTOTAL(109,Tabel_FotografiiȘiVideo[Costuri reale])","v":{"v":0,"d":"0.00 lei"}}]
[]
[null,"FAVORURI ȘI DARURI","Costuri estimate","Costuri reale"]
[null,"Daruri de bun venit"]
[null,"Daruri de petrecere"]
[null,"Diverse"]
[null,"Total",{"$f":"SUBTOTAL(109,Tabel_FavoruriȘiDaruri[Costuri estimate])","v":{"v":0,"d":"0.00 lei"}},{"$f":"SUBTOTAL(109,Tabel_FavoruriȘiDaruri[Costuri reale])","v":{"v":0,"d":"0.00 lei"}}]
[]
[null,"CEREMONIE","Costuri estimate","Costuri reale"]
[null,"Taxă locație"]
[null,"Taxa de oficiant sau donație către biserică"]
[null,"Diverse"]
[null,"Total",{"$f":"SUBTOTAL(109,Tabel_Ceremonie[Costuri estimate])","v":{"v":0,"d":"0.00 lei"}},{"$f":"SUBTOTAL(109,Tabel_Ceremonie[Costuri reale])","v":{"v":0,"d":"0.00 lei"}}]
[]
[null,"PAPETĂRIE","Costuri estimate","Costuri reale"]
[null,"Pre-invitații"]
[null,"Invitații și confirmări"]
[null,"Programe"]
[null,"Carduri cu aranjarea la mese"]
[null,"Meniuri"]
[null,"Note de mulțumire"]
[null,"Cheltuieli poștale"]
[null,"Diverse"]
[null,"Total",{"$f":"SUBTOTAL(109,Tabel_Papetărie[Costuri estimate])","v":{"v":0,"d":"0.00 lei"}},{"$f":"SUBTOTAL(109,Tabel_Papetărie[Costuri reale])","v":{"v":0,"d":"0.00 lei"}}]
[]
[null,"VERIGHETE","Costuri estimate","Costuri reale"]
[null,"Verighete"]
[null,"Accesorii inel"]
[null,"Total",{"$f":"SUBTOTAL(109,Tabel_Verighete[Costuri estimate])","v":{"v":0,"d":"0.00 lei"}},{"$f":"SUBTOTAL(109,Tabel_Verighete[Costuri reale])","v":{"v":0,"d":"0.00 lei"}}]
[]
[null,"TRANSPORT","Costuri estimate","Costuri reale"]
[null,"Închiriere mașină principală"]
[null,"Închiriere mașini pentru oaspeți"]
[null,"Transport pentru oaspeții din afara orașului"]
[null,"Parcare cu valet"]
[null,"Diverse"]
[null,"Total",{"$f":"SUBTOTAL(109,Tabel_Transport[Costuri estimate])","v":{"v":0,"d":"0.00 lei"}},{"$f":"SUBTOTAL(109,Tabel_Transport[Costuri reale])","v":{"v":0,"d":"0.00 lei"}}]